fUST/lending_fUST_20260623
["ID","MTS","AMOUNT","RATE_DAILY","PERIOD"]
[426159807,1782197440000,-500.0,0.00017048,2]
[426159806,1782197440000,-213.65301983,0.00017048,2]
[426159810,1782197440000,-500.0,0.00017048,2]
[426159812,1782197440000,-500.0,0.00017048,2]
[426159811,1782197440000,-500.0,0.00017048,2]
[426159814,1782197440000,-500.0,0.00017048,2]
[426159813,1782197440000,-500.0,0.00017048,2]
[426159817,1782197440000,-500.0,0.00017048,2]
[426159820,1782197440000,-500.0,0.00017048,2]
[426159816,1782197440000,-500.0,0.00017048,2]
[426159819,1782197440000,-500.0,0.00017048,2]
[426159793,1782197440000,-500.0,0.00017047,2]
[426159822,1782197440000,-500.0,0.00017049,2]
[426159808,1782197440000,-500.0,0.00017048,2]
[426159791,1782197440000,-500.0,0.00017046,2]
[426159765,1782197440000,-500.0,0.00016861,2]
[426159785,1782197440000,-500.0,0.00017046,2]
[426159818,1782197440000,-400.0,0.00017048,2]
[426159753,1782197440000,-1082.0,0.00016774,2]
[426159755,1782197440000,-1082.0,0.00016774,2]
[426159756,1782197440000,-1082.0,0.00016774,2]
[426159758,1782197440000,-500.0,0.00016861,2]
[426159759,1782197440000,-500.0,0.00016861,2]
[426159760,1782197440000,-500.0,0.00016861,2]
[426159762,1782197440000,-500.0,0.00016861,2]
[426159757,1782197440000,-1087.94112578,0.00016774,2]
[426159764,1782197440000,-500.0,0.00016861,2]
[426159763,1782197440000,-500.0,0.00016861,2]
[426159761,1782197440000,-500.0,0.00016861,2]
[426159766,1782197440000,-500.0,0.00016861,2]
[426159787,1782197440000,-577.74,0.00017046,2]
[426159768,1782197440000,-500.0,0.00017046,2]
[426159769,1782197440000,-500.0,0.00017046,2]
[426159771,1782197440000,-500.0,0.00017046,2]
[426159776,1782197440000,-500.0,0.00017046,2]
[426159772,1782197440000,-535.26,0.00017046,2]
[426159777,1782197440000,-500.0,0.00017046,2]
[426159770,1782197440000,-500.0,0.00017046,2]
[426159774,1782197440000,-500.0,0.00017046,2]
[426159773,1782197440000,-500.0,0.00017046,2]
[426159775,1782197440000,-500.0,0.00017046,2]
[426159778,1782197440000,-500.0,0.00017046,2]
[426159779,1782197440000,-500.0,0.00017046,2]
[426159781,1782197440000,-627.65,0.00017046,2]
[426159783,1782197440000,-794.59,0.00017046,2]
[426159767,1782197440000,-578.617889,0.00016862,2]
[426159821,1782197440000,-500.0,0.00017049,2]
[426159754,1782197440000,-1082.0,0.00016774,2]
[426159824,1782197440000,-500.0,0.00017049,2]
[426159858,1782197440000,-500.0,0.00017135,2]
[426159859,1782197440000,-500.0,0.00017135,2]
[426159857,1782197440000,-500.0,0.00017135,2]
[426159861,1782197440000,-500.0,0.0001732,2]
[426159863,1782197440000,-500.0,0.0001732,2]
[426159862,1782197440000,-500.0,0.0001732,2]
[426159869,1782197440000,-500.0,0.0001732,2]
[426159866,1782197440000,-500.0,0.0001732,2]
[426159867,1782197440000,-500.0,0.0001732,2]
[426159873,1782197440000,-794.59,0.0001732,2]
[426159868,1782197440000,-500.0,0.0001732,2]
[426159864,1782197440000,-535.26,0.0001732,2]
[426159865,1782197440000,-500.0,0.0001732,2]
[426159860,1782197440000,-502.12801059,0.0001732,2]
[426159874,1782197440000,-500.0,0.0001732,2]
[426159872,1782197440000,-627.65,0.0001732,2]
[426159870,1782197440000,-500.0,0.0001732,2]
[426159875,1782197440000,-577.74,0.0001732,2]
[426159876,1782197440000,-736.03,0.0001732,2]
[426159883,1782197440000,-500.0,0.00017321,2]
[426159879,1782197440000,-500.0,0.00017321,2]
[426159882,1782197440000,-500.0,0.00017321,2]
[426159878,1782197440000,-500.0,0.00017321,2]
[426159884,1782197440000,-500.0,0.00017321,2]
[426159880,1782197440000,-960.72,0.00017321,2]
[426159881,1782197440000,-500.0,0.00017321,2]
[426159885,1782197440000,-500.0,0.00017321,2]
[426159825,1782197440000,-468.0,0.00017049,2]
[426159871,1782197440000,-500.0,0.0001732,2]
[426159854,1782197440000,-500.0,0.00017135,2]
[426159877,1782197440000,-500.0,0.0001732,2]
[426159855,1782197440000,-500.0,0.00017135,2]
[426159823,1782197440000,-500.0,0.00017049,2]
[426159826,1782197440000,-500.0,0.00017049,2]
[426159827,1782197440000,-500.0,0.00017049,2]
[426159829,1782197440000,-500.0,0.00017049,2]
[426159828,1782197440000,-500.0,0.00017049,2]
[426159832,1782197440000,-500.0,0.00017049,2]
[426159834,1782197440000,-500.0,0.00017049,2]
[426159831,1782197440000,-503.04614391,0.00017049,2]
[426159856,1782197440000,-500.0,0.00017135,2]
[426159835,1782197440000,-500.0,0.00017049,2]
[426159833,1782197440000,-500.0,0.00017049,2]
[426159836,1782197440000,-500.0,0.00017049,2]
[426159837,1782197440000,-500.0,0.00017049,2]
[426159838,1782197440000,-500.0,0.00017049,2]
[426159830,1782197440000,-500.0,0.00017049,2]
[426159841,1782197440000,-505.69135089,0.00017049,2]
[426159853,1782197440000,-500.0,0.00017135,2]
[426159839,1782197440000,-500.0,0.00017049,2]
[426159852,1782197440000,-500.0,0.00017135,2]
[426159850,1782197440000,-515.97192595,0.00017049,2]
[426159851,1782197440000,-500.0,0.00017135,2]
[426159847,1782197440000,-500.00208313,0.00017049,2]
[426159849,1782197440000,-334.22887655,0.00017049,2]
[426159844,1782197440000,-500.0,0.00017049,2]
[426159848,1782197440000,-500.0,0.00017049,2]
[426159842,1782197440000,-500.0,0.00017049,2]
[426159846,1782197440000,-560.25687519,0.00017049,2]
[426159840,1782197440000,-500.0,0.00017049,2]
[426159843,1782197440000,-500.0,0.00017049,2]
[426159845,1782197440000,-500.0,0.00017049,2]
[426159926,1782197441000,-535.26,0.00017594,2]
[426159932,1782197441000,-500.0,0.00017594,2]
[426159928,1782197441000,-500.0,0.00017594,2]
[426159929,1782197441000,-500.0,0.00017594,2]
[426159927,1782197441000,-500.0,0.00017594,2]
[426159919,1782197441000,-210.6139152,0.00017495,2]
[426159925,1782197441000,-500.0,0.00017594,2]
[426159920,1782197441000,-153.61510959,0.00017571,2]
[426159921,1782197441000,-221.13245884,0.00017571,2]
[426159924,1782197441000,-207.34078018,0.00017594,2]
[426159922,1782197441000,-578.617889,0.00017572,2]
[426159923,1782197441000,-500.0,0.00017594,2]
[426159934,1782197441000,-627.65,0.00017594,2]
[426159944,1782197441000,-500.0,0.00017595,2]
[426159931,1782197441000,-379.73595436,0.00017594,2]
[426159933,1782197441000,-500.0,0.00017594,2]
[426159936,1782197441000,-500.0,0.00017594,2]
[426159937,1782197441000,-577.74,0.00017594,2]
[426159935,1782197441000,-794.59,0.00017594,2]
[426159938,1782197441000,-736.03,0.00017594,2]
[426159940,1782197441000,-500.0,0.00017595,2]
[426159939,1782197441000,-500.0,0.00017594,2]
[426159942,1782197441000,-960.72,0.00017595,2]
[426159941,1782197441000,-500.0,0.00017595,2]
[426159943,1782197441000,-500.0,0.00017595,2]
[426159947,1782197441000,-501.24,0.00017595,2]
[426159917,1782197441000,-500.0,0.00017409,2]
[426159930,1782197441000,-500.0,0.00017594,2]
[426159918,1782197441000,-500.0,0.00017409,2]
[426159898,1782197441000,-500.0,0.00017323,2]
[426159916,1782197441000,-500.0,0.00017409,2]
[426159946,1782197441000,-500.0,0.00017595,2]
[426159886,1782197441000,-500.0,0.00017321,2]
[426159887,1782197441000,-501.24,0.00017321,2]
[426159889,1782197441000,-500.0,0.00017321,2]
[426159890,1782197441000,-500.0,0.00017321,2]
[426159901,1782197441000,-500.0,0.00017323,2]
[426159891,1782197441000,-610.51,0.00017321,2]
[426159892,1782197441000,-500.0,0.00017321,2]
[426159897,1782197441000,-500.0,0.00017323,2]
[426159894,1782197441000,-531.05,0.00017321,2]
[426159893,1782197441000,-500.0,0.00017321,2]
[426159895,1782197441000,-1149.17,0.00017321,2]
[426159900,1782197441000,-500.0,0.00017323,2]
[426159915,1782197441000,-500.0,0.00017409,2]
[426159896,1782197441000,-500.0,0.00017321,2]
[426159902,1782197441000,-356.47668968,0.00017323,2]
[426159903,1782197441000,-500.0,0.00017323,2]
[426159904,1782197441000,-500.0,0.00017323,2]
[426159906,1782197441000,-500.0,0.00017323,2]
[426159907,1782197441000,-500.0,0.00017323,2]
[426159914,1782197441000,-500.0,0.00017409,2]
[426159905,1782197441000,-500.0,0.00017323,2]
[426159908,1782197441000,-500.0,0.00017323,2]
[426159911,1782197441000,-500.0,0.00017409,2]
[426159910,1782197441000,-500.0,0.00017409,2]
[426159909,1782197441000,-500.0,0.00017323,2]
[426159912,1782197441000,-500.0,0.00017409,2]
[426159913,1782197441000,-500.0,0.00017409,2]
[426159899,1782197441000,-500.0,0.00017323,2]
[426159945,1782197441000,-500.0,0.00017595,2]
[426159888,1782197441000,-500.0,0.00017321,2]
[426159948,1782197441000,-500.0,0.00017595,2]
[426159983,1782197441000,-300.0,0.00017668,2]
[426159981,1782197441000,-300.0,0.00017668,2]
[426159987,1782197441000,-500.0,0.00017683,2]
[426159979,1782197441000,-300.0,0.00017668,2]
[426159982,1782197441000,-300.0,0.00017668,2]
[426159986,1782197441000,-500.0,0.00017683,2]
[426159985,1782197441000,-500.0,0.00017683,2]
[426159989,1782197441000,-500.0,0.00017683,2]
[426159990,1782197441000,-500.0,0.00017683,2]
[426159992,1782197441000,-500.0,0.00017683,2]
[426159991,1782197441000,-500.0,0.00017683,2]
[426159993,1782197441000,-500.0,0.00017683,2]
[426159998,1782197441000,-500.0,0.00017868,2]
[426159988,1782197441000,-500.0,0.00017683,2]
[426159995,1782197441000,-1058.43845347,0.00017804,2]
[426159994,1782197441000,-276.35550162,0.000177,2]
[426159999,1782197441000,-535.26,0.00017868,2]
[426160000,1782197441000,-500.0,0.00017868,2]
[426160001,1782197441000,-500.0,0.00017868,2]
[426160002,1782197441000,-500.0,0.00017868,2]
[426160007,1782197441000,-794.59,0.00017868,2]
[426160006,1782197441000,-627.65,0.00017868,2]
[426160005,1782197441000,-500.0,0.00017868,2]
[426160004,1782197441000,-500.0,0.00017868,2]
[426160003,1782197441000,-500.0,0.00017868,2]
[426160009,1782197441000,-577.74,0.00017868,2]
[426160008,1782197441000,-500.0,0.00017868,2]
[426159950,1782197441000,-500.0,0.00017595,2]
[426159997,1782197441000,-500.0,0.00017868,2]
[426159984,1782197441000,-300.0,0.00017668,2]
[426159996,1782197441000,-183.56632372,0.00017854,2]
[426159978,1782197441000,-300.0,0.00017668,2]
[426159980,1782197441000,-300.0,0.00017668,2]
[426159951,1782197441000,-610.51,0.00017595,2]
[426159958,1782197441000,-500.0,0.00017596,2]
[426159960,1782197441000,-500.0,0.00017596,2]
[426159953,1782197441000,-531.05,0.00017595,2]
[426159955,1782197441000,-500.0,0.00017595,2]
[426159954,1782197441000,-1149.17,0.00017595,2]
[426159956,1782197441000,-500.0,0.00017596,2]
[426159952,1782197441000,-500.0,0.00017595,2]
[426159957,1782197441000,-500.0,0.00017596,2]
[426159961,1782197441000,-500.0,0.00017596,2]
[426159962,1782197441000,-500.0,0.00017596,2]
[426159963,1782197441000,-500.0,0.00017596,2]
[426159959,1782197441000,-500.0,0.00017596,2]
[426159949,1782197441000,-500.0,0.00017595,2]
[426159964,1782197441000,-500.0,0.00017596,2]
[426159965,1782197441000,-500.0,0.00017596,2]
[426159976,1782197441000,-300.0,0.00017668,2]
[426159970,1782197441000,-300.0,0.00017668,2]
[426159971,1782197441000,-300.0,0.00017668,2]
[426159969,1782197441000,-500.0,0.00017667,2]
[426159967,1782197441000,-500.0,0.00017596,2]
[426159977,1782197441000,-300.0,0.00017668,2]
[426159968,1782197441000,-500.0,0.00017667,2]
[426159974,1782197441000,-300.0,0.00017668,2]
[426159975,1782197441000,-300.0,0.00017668,2]
[426159973,1782197441000,-300.0,0.00017668,2]
[426159966,1782197441000,-500.0,0.00017596,2]
[426159972,1782197441000,-300.0,0.00017668,2]
[426160052,1782197442000,-401.71525727,0.00018078,2]
[426160051,1782197442000,-600.0,0.0001802,2]
[426160047,1782197442000,-500.0,0.00017957,2]
[426160039,1782197442000,-500.0,0.0001787,2]
[426160048,1782197442000,-500.0,0.00017957,2]
[426160045,1782197442000,-500.0,0.00017957,2]
[426160049,1782197442000,-500.0,0.00017957,2]
[426160044,1782197442000,-500.0,0.00017957,2]
[426160041,1782197442000,-500.0,0.00017941,2]
[426160042,1782197442000,-500.0,0.00017957,2]
[426160053,1782197442000,-153.61510959,0.00018113,2]
[426160046,1782197442000,-500.0,0.00017957,2]
[426160055,1782197442000,-500.0,0.00018142,2]
[426160058,1782197442000,-500.0,0.00018142,2]
[426160062,1782197442000,-500.0,0.00018142,2]
[426160059,1782197442000,-500.0,0.00018142,2]
[426160063,1782197442000,-627.65,0.00018142,2]
[426160060,1782197442000,-500.0,0.00018142,2]
[426160056,1782197442000,-535.26,0.00018142,2]
[426160057,1782197442000,-500.0,0.00018142,2]
[426160061,1782197442000,-500.0,0.00018142,2]
[426160064,1782197442000,-794.59,0.00018142,2]
[426160065,1782197442000,-500.0,0.00018142,2]
[426160066,1782197442000,-577.74,0.00018142,2]
[426160068,1782197442000,-500.0,0.00018142,2]
[426160075,1782197442000,-500.0,0.00018143,2]
[426160043,1782197442000,-500.0,0.00017957,2]
[426160054,1782197442000,-500.0,0.00018142,2]
[426160040,1782197442000,-500.0,0.00017941,2]
[426160011,1782197442000,-500.0,0.00017868,2]
[426160037,1782197442000,-500.0,0.0001787,2]
[426160074,1782197442000,-500.0,0.00018143,2]
[426160012,1782197442000,-500.0,0.00017869,2]
[426160010,1782197442000,-736.03,0.00017868,2]
[426160013,1782197442000,-500.0,0.00017869,2]
[426160014,1782197442000,-960.72,0.00017869,2]
[426160015,1782197442000,-500.0,0.00017869,2]
[426160022,1782197442000,-500.0,0.00017869,2]
[426160020,1782197442000,-500.0,0.00017869,2]
[426160021,1782197442000,-500.0,0.00017869,2]
[426160019,1782197442000,-501.24,0.00017869,2]
[426160018,1782197442000,-500.0,0.00017869,2]
[426160016,1782197442000,-500.0,0.00017869,2]
[426160017,1782197442000,-500.0,0.00017869,2]
[426160050,1782197442000,-500.0,0.00017957,2]
[426160023,1782197442000,-610.51,0.00017869,2]
[426160024,1782197442000,-500.0,0.00017869,2]
[426160027,1782197442000,-500.0,0.00017869,2]
[426160026,1782197442000,-1149.17,0.00017869,2]
[426160029,1782197442000,-500.0,0.0001787,2]
[426160030,1782197442000,-500.0,0.0001787,2]
[426160031,1782197442000,-500.0,0.0001787,2]
[426160028,1782197442000,-500.0,0.0001787,2]
[426160033,1782197442000,-500.0,0.0001787,2]
[426160032,1782197442000,-500.0,0.0001787,2]
[426160035,1782197442000,-500.0,0.0001787,2]
[426160036,1782197442000,-500.0,0.0001787,2]
[426160034,1782197442000,-500.0,0.0001787,2]
[426160038,1782197442000,-500.0,0.0001787,2]
[426160025,1782197442000,-531.05,0.00017869,2]
[426160067,1782197442000,-736.03,0.00018142,2]
[426160070,1782197442000,-500.0,0.00018143,2]
[426160072,1782197442000,-500.0,0.00018143,2]
[426160107,1782197442000,-500.0,0.00018231,2]
[426160105,1782197442000,-500.0,0.00018231,2]
[426160104,1782197442000,-500.0,0.00018231,2]
[426160109,1782197442000,-500.0,0.00018416,2]
[426160110,1782197442000,-500.0,0.00018416,2]
[426160112,1782197442000,-500.0,0.00018416,2]
[426160111,1782197442000,-535.26,0.00018416,2]
[426160113,1782197442000,-500.0,0.00018416,2]
[426160114,1782197442000,-500.0,0.00018416,2]
[426160119,1782197442000,-794.59,0.00018416,2]
[426160120,1782197442000,-415.39575548,0.00018416,2]
[426160115,1782197442000,-500.0,0.00018416,2]
[426160118,1782197442000,-627.65,0.00018416,2]
[426160108,1782197442000,-578.617889,0.00018281,2]
[426160116,1782197442000,-500.0,0.00018416,2]
[426160122,1782197442000,-736.03,0.00018416,2]
[426160117,1782197442000,-500.0,0.00018416,2]
[426160121,1782197442000,-577.74,0.00018416,2]
[426160124,1782197442000,-500.0,0.00018417,2]
[426160125,1782197442000,-500.0,0.00018417,2]
[426160126,1782197442000,-960.72,0.00018417,2]
[426160129,1782197442000,-500.0,0.00018417,2]
[426160127,1782197442000,-500.0,0.00018417,2]
[426160131,1782197442000,-501.24,0.00018417,2]
[426160132,1782197442000,-500.0,0.00018417,2]
[426160069,1782197442000,-500.0,0.00018143,2]
[426160128,1782197442000,-643.11052186,0.00018417,2]
[426160133,1782197442000,-500.0,0.00018417,2]
[426160123,1782197442000,-500.0,0.00018416,2]
[426160102,1782197442000,-500.0,0.00018231,2]
[426160130,1782197442000,-500.0,0.00018417,2]
[426160106,1782197442000,-500.0,0.00018231,2]
[426160103,1782197442000,-500.0,0.00018231,2]
[426160076,1782197442000,-501.24,0.00018143,2]
[426160073,1782197442000,-500.0,0.00018143,2]
[426160078,1782197442000,-430.02506981,0.00018143,2]
[426160077,1782197442000,-500.0,0.00018143,2]
[426160086,1782197442000,-500.0,0.00018144,2]
[426160079,1782197442000,-500.0,0.00018143,2]
[426160080,1782197442000,-610.51,0.00018143,2]
[426160087,1782197442000,-500.0,0.00018144,2]
[426160089,1782197442000,-500.0,0.00018144,2]
[426160081,1782197442000,-500.0,0.00018143,2]
[426160088,1782197442000,-500.0,0.00018144,2]
[426160082,1782197442000,-531.05,0.00018143,2]
[426160085,1782197442000,-500.0,0.00018144,2]
[426160071,1782197442000,-960.72,0.00018143,2]
[426160084,1782197442000,-500.0,0.00018143,2]
[426160083,1782197442000,-1149.17,0.00018143,2]
[426160096,1782197442000,-500.0,0.00018144,2]
[426160092,1782197442000,-500.0,0.00018144,2]
[426160095,1782197442000,-500.0,0.00018144,2]
[426160093,1782197442000,-500.0,0.00018144,2]
[426160094,1782197442000,-500.0,0.00018144,2]
[426160091,1782197442000,-500.0,0.00018144,2]
[426160090,1782197442000,-500.0,0.00018144,2]
[426160097,1782197442000,-500.0,0.00018215,2]
[426160101,1782197442000,-500.0,0.00018231,2]
[426160099,1782197442000,-500.0,0.00018231,2]
[426160100,1782197442000,-500.0,0.00018231,2]
[426160098,1782197442000,-500.0,0.00018215,2]
[426160160,1782197443000,-500.0,0.00018505,2]
[426160170,1782197443000,-500.0,0.0001869,2]
[426160161,1782197443000,-500.0,0.00018505,2]
[426160162,1782197443000,-500.0,0.00018505,2]
[426160177,1782197443000,-577.74,0.0001869,2]
[426160168,1782197443000,-535.26,0.0001869,2]
[426160178,1782197443000,-736.03,0.0001869,2]
[426160174,1782197443000,-500.0,0.0001869,2]
[426160172,1782197443000,-500.0,0.0001869,2]
[426160180,1782197443000,-500.0,0.00018691,2]
[426160169,1782197443000,-500.0,0.0001869,2]
[426160192,1782197443000,-500.0,0.00018691,2]
[426160175,1782197443000,-627.65,0.0001869,2]
[426160171,1782197443000,-500.0,0.0001869,2]
[426160173,1782197443000,-500.0,0.0001869,2]
[426160176,1782197443000,-794.59,0.0001869,2]
[426160182,1782197443000,-960.72,0.00018691,2]
[426160184,1782197443000,-500.0,0.00018691,2]
[426160183,1782197443000,-500.0,0.00018691,2]
[426160181,1782197443000,-500.0,0.00018691,2]
[426160193,1782197443000,-491.18409612,0.00018692,2]
[426160186,1782197443000,-501.24,0.00018691,2]
[426160187,1782197443000,-500.0,0.00018691,2]
[426160167,1782197443000,-500.0,0.0001869,2]
[426160179,1782197443000,-500.0,0.0001869,2]
[426160159,1782197443000,-500.0,0.00018505,2]
[426160150,1782197443000,-500.0,0.00018418,2]
[426160164,1782197443000,-500.0,0.00018505,2]
[426160185,1782197443000,-500.0,0.00018691,2]
[426160138,1782197443000,-500.0,0.00018417,2]
[426160135,1782197443000,-204.25198688,0.00018417,2]
[426160134,1782197443000,-610.51,0.00018417,2]
[426160137,1782197443000,-1149.17,0.00018417,2]
[426160136,1782197443000,-531.05,0.00018417,2]
[426160139,1782197443000,-500.0,0.00018418,2]
[426160140,1782197443000,-197.64815507,0.00018418,2]
[426160143,1782197443000,-302.35184493,0.00018418,2]
[426160146,1782197443000,-500.0,0.00018418,2]
[426160145,1782197443000,-500.0,0.00018418,2]
[426160152,1782197443000,-500.0,0.00018418,2]
[426160151,1782197443000,-500.0,0.00018418,2]
[426160147,1782197443000,-500.0,0.00018418,2]
[426160144,1782197443000,-500.0,0.00018418,2]
[426160148,1782197443000,-500.0,0.00018418,2]
[426160154,1782197443000,-500.0,0.00018489,2]
[426160149,1782197443000,-500.0,0.00018418,2]
[426160153,1782197443000,-500.0,0.00018418,2]
[426160156,1782197443000,-500.0,0.00018505,2]
[426160163,1782197443000,-500.0,0.00018505,2]
[426160158,1782197443000,-500.0,0.00018505,2]
[426160155,1782197443000,-500.0,0.00018489,2]
[426160165,1782197443000,-1058.43845347,0.00018555,2]
[426160166,1782197443000,-408.6588184,0.0001869,2]
[426160157,1782197443000,-500.0,0.00018505,2]
[426160189,1782197443000,-610.51,0.00018691,2]
[426160242,1782197443000,-500.0,0.00018965,2]
[426160191,1782197443000,-1149.17,0.00018691,2]
[426160229,1782197443000,-500.0,0.00018964,2]
[426160222,1782197443000,-317.13417604,0.00018964,2]
[426160221,1782197443000,-500.0,0.00018964,2]
[426160225,1782197443000,-627.65,0.00018964,2]
[426160231,1782197443000,-500.0,0.00018965,2]
[426160232,1782197443000,-960.72,0.00018965,2]
[426160223,1782197443000,-500.0,0.00018964,2]
[426160220,1782197443000,-171.31798393,0.00018964,2]
[426160226,1782197443000,-794.59,0.00018964,2]
[426160227,1782197443000,-577.74,0.00018964,2]
[426160230,1782197443000,-518.44762219,0.00018965,2]
[426160234,1782197443000,-507.01454043,0.00018965,2]
[426160240,1782197443000,-531.05,0.00018965,2]
[426160238,1782197443000,-500.0,0.00018965,2]
[426160239,1782197443000,-610.51,0.00018965,2]
[426160236,1782197443000,-501.24,0.00018965,2]
[426160237,1782197443000,-500.0,0.00018965,2]
[426160235,1782197443000,-500.0,0.00018965,2]
[426160241,1782197443000,-1149.17,0.00018965,2]
[426160245,1782197443000,-500.0,0.00018966,2]
[426160243,1782197443000,-500.0,0.00018966,2]
[426160247,1782197443000,-500.0,0.00018966,2]
[426160244,1782197443000,-500.0,0.00018966,2]
[426160246,1782197443000,-500.0,0.00018966,2]
[426160188,1782197443000,-500.0,0.00018691,2]
[426160224,1782197443000,-500.0,0.00018964,2]
[426160228,1782197443000,-736.03,0.00018964,2]
[426160233,1782197443000,-500.0,0.00018965,2]
[426160215,1782197443000,-576.25283551,0.00018779,2]
[426160217,1782197443000,-163.952,0.00018961,2]
[426160190,1782197443000,-531.05,0.00018691,2]
[426160195,1782197443000,-500.0,0.00018692,2]
[426160207,1782197443000,-500.0,0.00018763,2]
[426160205,1782197443000,-180.93746867,0.00018724,2]
[426160206,1782197443000,-151.61738036,0.00018724,2]
[426160197,1782197443000,-500.0,0.00018692,2]
[426160196,1782197443000,-500.0,0.00018692,2]
[426160199,1782197443000,-500.0,0.00018692,2]
[426160200,1782197443000,-520.90153786,0.00018692,2]
[426160198,1782197443000,-500.0,0.00018692,2]
[426160203,1782197443000,-521.73966601,0.00018692,2]
[426160202,1782197443000,-500.0,0.00018692,2]
[426160194,1782197443000,-500.0,0.00018692,2]
[426160201,1782197443000,-500.0,0.00018692,2]
[426160216,1782197443000,-500.0,0.00018779,2]
[426160213,1782197443000,-500.0,0.00018779,2]
[426160211,1782197443000,-500.0,0.00018779,2]
[426160208,1782197443000,-500.0,0.00018763,2]
[426160212,1782197443000,-298.07910769,0.00018779,2]
[426160218,1782197443000,-152.25695041,0.00018961,2]
[426160214,1782197443000,-500.0,0.00018779,2]
[426160219,1782197443000,-535.26,0.00018964,2]
[426160209,1782197443000,-500.0,0.00018779,2]
[426160204,1782197443000,-500.0,0.00018692,2]
[426160210,1782197443000,-500.0,0.00018779,2]
[426160289,1782197444000,-500.0,0.0001924,2]
[426160290,1782197444000,-500.0,0.0001924,2]
[426160285,1782197444000,-500.0,0.0001924,2]
[426160287,1782197444000,-645.2,0.0001924,2]
[426160291,1782197444000,-500.0,0.00019311,2]
[426160282,1782197444000,-500.0,0.00019239,2]
[426160284,1782197444000,-500.0,0.0001924,2]
[426160281,1782197444000,-1149.17,0.00019239,2]
[426160283,1782197444000,-500.0,0.0001924,2]
[426160280,1782197444000,-531.05,0.00019239,2]
[426160286,1782197444000,-500.0,0.0001924,2]
[426160288,1782197444000,-500.0,0.0001924,2]
[426160292,1782197444000,-500.0,0.00019311,2]
[426160306,1782197444000,-500.0,0.00019512,2]
[426160296,1782197444000,-500.0,0.00019327,2]
[426160304,1782197444000,-303.23476073,0.00019504,2]
[426160299,1782197444000,-171.52957736,0.00019504,2]
[426160295,1782197444000,-500.0,0.00019327,2]
[426160293,1782197444000,-500.0,0.00019327,2]
[426160297,1782197444000,-500.0,0.00019327,2]
[426160298,1782197444000,-181.84,0.00019327,2]
[426160300,1782197444000,-188.82456775,0.00019504,2]
[426160301,1782197444000,-150.07294189,0.00019504,2]
[426160303,1782197444000,-361.87493734,0.00019504,2]
[426160302,1782197444000,-220.18337751,0.00019504,2]
[426160317,1782197444000,-500.0,0.00019513,2]
[426160276,1782197444000,-501.24,0.00019239,2]
[426160294,1782197444000,-500.0,0.00019327,2]
[426160274,1782197444000,-960.72,0.00019239,2]